bitfinex-derivatives/quotes_BTCF0:USTF0_20260214
["timestamp","ask_amount","ask_price","bid_price","bid_amount"]
[1771047486130,0.08717961,68844.0,68838.0,0.014534]
[1771047486337,0.08717961,68844.0,68840.0,0.014534]
[1771047486631,0.08717961,68844.0,68839.0,0.014534]
[1771047487032,0.08817961,68844.0,68839.0,0.014534]
[1771047487833,0.08717961,68844.0,68839.0,0.014534]
[1771047488046,0.08917961,68844.0,68839.0,0.014534]
[1771047488536,0.08917961,68844.0,68840.0,0.014534]
[1771047488832,0.10371261,68844.0,68840.0,0.014534]
[1771047489439,0.10171261,68844.0,68840.0,0.014534]
[1771047490628,0.08188511,68844.0,68840.0,0.014534]
[1771047490939,0.06168511,68844.0,68840.0,0.014534]
[1771047491330,0.06168511,68844.0,68841.0,0.014534]
[1771047491331,0.04715211,68844.0,68841.0,0.014534]
[1771047491832,0.02563211,68844.0,68841.0,0.014534]
[1771047492228,0.00543211,68844.0,68841.0,0.014534]
[1771047492536,0.01456,68845.0,68841.0,0.014534]
[1771047492729,0.027093,68845.0,68841.0,0.014534]
[1771047493333,0.025773,68845.0,68841.0,0.014534]
[1771047493530,0.040306,68845.0,68840.0,0.014534]
[1771047493733,0.022916,68845.0,68840.0,0.014534]
[1771047493932,0.037449,68845.0,68840.0,0.014534]
[1771047494539,0.014533,68844.0,68840.0,0.014534]
[1771047496238,0.015533,68844.0,68840.0,0.014534]
[1771047499143,0.01456,68845.0,68840.0,0.014534]
[1771047499343,0.029093,68845.0,68840.0,0.014534]
[1771047499640,0.028223,68845.0,68840.0,0.014534]
[1771047499845,0.014533,68844.0,68840.0,0.014534]
[1771047500032,0.011263,68844.0,68840.0,0.014534]
[1771047501242,0.010553,68844.0,68840.0,0.014534]
[1771047501543,0.006933,68844.0,68840.0,0.014534]
[1771047501844,0.007933,68844.0,68840.0,0.014534]
[1771047502242,0.007183,68844.0,68840.0,0.014534]
[1771047503041,0.001,68844.0,68841.0,0.004]
[1771047503234,0.01456,68847.0,68840.0,0.014534]
[1771047503543,0.014533,68844.0,68839.0,0.014534]
[1771047504045,0.014533,68843.0,68839.0,0.014534]
[1771047504244,0.014013,68843.0,68839.0,0.014534]
[1771047504445,0.010123,68844.0,68839.0,0.014534]
[1771047504947,0.010123,68844.0,68840.0,0.001]
[1771047505138,0.010123,68844.0,68840.0,0.015534]
[1771047505446,0.010123,68844.0,68840.0,0.014534]
[1771047505845,0.014533,68845.0,68840.0,0.014534]
[1771047506247,0.014533,68845.0,68840.0,0.015534]
[1771047506653,0.014533,68844.0,68840.0,0.015534]
[1771047506844,0.014533,68845.0,68840.0,0.015534]
[1771047507144,0.014533,68846.0,68840.0,0.015534]
[1771047507745,0.014533,68846.0,68840.0,0.014534]
[1771047507944,0.014533,68846.0,68840.0,0.015534]
[1771047508337,0.014533,68846.0,68840.0,0.014534]
[1771047508538,0.014533,68846.0,68840.0,0.015534]
[1771047508737,0.014533,68844.0,68840.0,0.015534]
[1771047508942,0.015533,68846.0,68840.0,0.014534]
[1771047509751,0.014533,68844.0,68840.0,0.014534]
[1771047509950,0.015533,68846.0,68840.0,0.014534]
[1771047510353,0.014533,68844.0,68840.0,0.014534]
[1771047512051,0.014533,68844.0,68839.0,0.014534]
[1771047514246,0.028356,68844.0,68839.0,0.014534]
[1771047514753,0.014534,68841.0,68837.0,0.01456]
[1771047515450,0.013514,68841.0,68837.0,0.01456]
[1771047515651,0.007317,68843.0,68837.0,0.01456]
[1771047515949,0.014534,68841.0,68837.0,0.01456]
[1771047516151,0.014534,68841.0,68837.0,0.01556]
[1771047516455,0.013754,68841.0,68837.0,0.01556]
[1771047517454,0.013754,68841.0,68837.0,0.01456]
[1771047518156,0.013754,68841.0,68837.0,0.029095]
[1771047518351,0.007317,68843.0,68837.0,0.029095]
[1771047518551,0.006567,68843.0,68837.0,0.029095]
[1771047519660,0.014534,68841.0,68837.0,0.029095]
[1771047520258,0.013824,68841.0,68837.0,0.029095]
[1771047520556,0.006567,68843.0,68837.0,0.030095]
[1771047520754,0.013804,68841.0,68837.0,0.030095]
[1771047521253,0.014535,68835.0,68832.0,0.14536]
[1771047521559,0.014534,68838.0,68833.0,0.029095]
[1771047522260,0.014533,68847.0,68833.0,0.029095]
[1771047522261,0.014533,68844.0,68840.0,0.014534]
[1771047522559,0.014533,68843.0,68839.0,0.014534]
[1771047523462,0.01456,68844.0,68839.0,0.014534]
[1771047523761,0.01456,68845.0,68839.0,0.014534]
[1771047523961,0.029066,68844.0,68839.0,0.014534]
[1771047524162,0.014533,68844.0,68839.0,0.014534]
[1771047524758,0.01456,68845.0,68839.0,0.014534]
[1771047525061,0.016533,68844.0,68839.0,0.014534]
[1771047525261,0.01456,68845.0,68839.0,0.014534]
[1771047525665,0.014533,68844.0,68839.0,0.014534]
[1771047527362,0.015533,68844.0,68839.0,0.014534]
[1771047528368,0.030066,68844.0,68839.0,0.014534]
[1771047528568,0.015533,68844.0,68839.0,0.014534]
[1771047529966,0.030066,68844.0,68839.0,0.014534]
[1771047533569,0.001,68844.0,68840.0,0.014534]
[1771047533774,0.01456,68845.0,68839.0,0.014534]
[1771047534274,0.029066,68844.0,68839.0,0.014534]
[1771047534677,0.014533,68844.0,68839.0,0.029094]
[1771047535274,0.01456,68845.0,68839.0,0.029094]
[1771047535474,0.014533,68844.0,68839.0,0.029094]
[1771047536375,0.029066,68844.0,68839.0,0.029094]
[1771047536974,0.014533,68844.0,68839.0,0.029094]
[1771047537576,0.43537525,68881.0,68841.0,0.014534]
[1771047537767,0.15992,68866.0,68846.0,0.06421841]
[1771047537970,0.014532,68850.0,68845.0,0.014533]
[1771047538371,0.029064,68850.0,68845.0,0.014533]
[1771047538875,0.014532,68850.0,68845.0,0.014533]
[1771047539978,0.029064,68850.0,68845.0,0.014533]
[1771047540367,0.014532,68850.0,68845.0,0.014533]
[1771047541476,0.014532,68850.0,68843.0,0.029093]
[1771047541477,0.029091,68852.0,68843.0,0.01456]
[1771047541676,0.014533,68845.0,68844.0,0.01456]
[1771047541878,0.01456,68845.0,68827.0,0.014537]
[1771047542076,0.014535,68834.0,68830.0,0.01456]
[1771047542276,0.014535,68834.0,68827.0,0.014537]
[1771047542473,0.014535,68835.0,68830.0,0.014536]
[1771047542681,0.014535,68835.0,68830.0,0.01456]
[1771047542979,0.014535,68837.0,68830.0,0.029096]
[1771047543181,0.014535,68836.0,68831.0,0.014536]
[1771047543381,0.014535,68836.0,68830.0,0.029096]
[1771047543577,0.014535,68836.0,68831.0,0.014536]
[1771047543778,0.014535,68836.0,68830.0,0.030096]
[1771047544179,0.014535,68836.0,68831.0,0.014536]
[1771047544379,0.01456,68838.0,68834.0,0.014535]
[1771047546895,0.01456,68838.0,68834.0,0.015535]
[1771047547082,0.01456,68838.0,68834.0,0.016535]
[1771047548588,0.01456,68838.0,68834.0,0.014535]
[1771047548889,0.01556,68838.0,68834.0,0.014535]
[1771047549090,0.01656,68838.0,68834.0,0.014535]
[1771047549596,0.01456,68838.0,68834.0,0.014535]
[1771047549784,0.01556,68838.0,68834.0,0.014535]
[1771047550194,0.01556,68838.0,68835.0,0.014535]
[1771047551488,0.014534,68840.0,68835.0,0.014535]
[1771047551689,0.01456,68838.0,68835.0,0.014535]
[1771047551893,0.01556,68838.0,68835.0,0.014535]
[1771047552392,0.01456,68838.0,68835.0,0.014535]
[1771047553297,0.01556,68838.0,68835.0,0.014535]
[1771047556696,0.01456,68839.0,68835.0,0.014535]
[1771047556890,0.01456,68839.0,68836.0,0.014535]
[1771047557297,0.01456,68839.0,68835.0,0.014535]
[1771047557497,0.01456,68839.0,68834.0,0.014535]
[1771047557795,0.029094,68839.0,68834.0,0.014535]
[1771047557998,0.014535,68837.0,68832.0,0.014536]
[1771047559403,0.014535,68836.0,68831.0,0.014536]
[1771047559596,0.014536,68831.0,68826.0,0.014537]
[1771047559800,0.014536,68832.0,68827.0,0.01456]
[1771047560001,0.014536,68831.0,68827.0,0.01456]
[1771047561500,0.014536,68831.0,68826.0,0.043634]
[1771047561803,0.014536,68831.0,68827.0,0.001]
[1771047562702,0.014536,68831.0,68826.0,0.01456]
[1771047563103,0.014536,68831.0,68826.0,0.014537]
[1771047563905,0.014536,68831.0,68826.0,0.029074]
[1771047564208,0.014536,68832.0,68827.0,0.014537]
[1771047564698,0.01456,68835.0,68826.0,0.001]
[1771047564905,0.029095,68835.0,68830.0,0.014536]
[1771047565709,0.01456,68835.0,68825.0,0.01456]
[1771047565909,0.014535,68833.0,68823.0,0.029098]
[1771047566206,0.014537,68826.0,68821.0,0.01456]
[1771047566511,0.014536,68828.0,68820.0,0.01456]
[1771047566808,0.014537,68827.0,68821.0,0.014538]
[1771047567806,0.014537,68828.0,68821.0,0.014538]
[1771047568002,0.014537,68825.0,68820.0,0.029098]
[1771047568207,0.014537,68826.0,68821.0,0.014538]
[1771047568401,0.014537,68826.0,68821.0,0.029076]
[1771047568708,0.014537,68826.0,68821.0,0.014538]
[1771047569108,0.002,68825.0,68817.0,0.014539]
[1771047569302,0.002,68825.0,68819.0,0.01456]
[1771047569807,0.002,68825.0,68821.0,0.014538]
[1771047570004,0.002,68825.0,68822.0,0.014538]
[1771047570510,0.016537,68826.0,68820.0,0.014538]
[1771047570711,0.016537,68826.0,68819.0,0.01456]
[1771047571007,0.015537,68825.0,68821.0,0.014538]
[1771047571209,0.015537,68825.0,68819.0,0.029098]
[1771047571608,0.015537,68825.0,68818.0,0.01456]
[1771047571609,0.014537,68825.0,68818.0,0.01456]
[1771047572211,0.016537,68826.0,68821.0,0.014538]
[1771047572707,0.014538,68823.0,68818.0,0.029098]
[1771047573011,0.014538,68822.0,68818.0,0.01456]
[1771047573207,0.014538,68823.0,68816.0,0.01456]
[1771047573208,0.029076,68821.0,68816.0,0.01456]
[1771047573404,0.014538,68822.0,68818.0,0.014539]
[1771047574114,0.014538,68822.0,68815.0,0.01456]
[1771047574613,0.014538,68822.0,68817.0,0.014539]
[1771047574914,0.014538,68822.0,68816.0,0.029099]
[1771047575411,0.014538,68822.0,68817.0,0.014539]
[1771047577313,0.014538,68822.0,68816.0,0.029099]
[1771047577812,0.014538,68821.0,68816.0,0.01410687]
[1771047578010,0.014538,68822.0,68815.0,0.01456]
[1771047578210,0.014538,68822.0,68817.0,0.014539]
[1771047578416,0.015538,68822.0,68816.0,0.014539]
[1771047578611,0.015538,68822.0,68815.0,0.01456]
[1771047578912,0.001,68821.0,68815.0,0.01456]
[1771047579110,0.015538,68821.0,68816.0,0.014539]
[1771047579307,0.015538,68821.0,68815.0,0.01456]
[1771047579615,0.001,68821.0,68817.0,0.014539]
[1771047580116,0.015538,68821.0,68816.0,0.014539]
[1771047580316,0.014538,68821.0,68816.0,0.014539]
[1771047580507,0.014538,68821.0,68816.0,0.015539]
[1771047580706,0.014538,68821.0,68816.0,0.030078]
[1771047580906,0.014538,68821.0,68817.0,0.014539]
[1771047581114,0.014538,68821.0,68816.0,0.014539]
[1771047581507,0.014538,68821.0,68816.0,0.030078]
[1771047581808,0.014538,68822.0,68817.0,0.014539]
[1771047583514,0.014538,68821.0,68817.0,0.014539]
[1771047583915,0.014538,68822.0,68817.0,0.014539]
[1771047584219,0.014538,68822.0,68815.0,0.029099]
[1771047584921,0.001,68821.0,68815.0,0.029099]
[1771047585409,0.014538,68822.0,68815.0,0.029099]
[1771047585617,0.015538,68822.0,68815.0,0.029099]
[1771047585811,0.015538,68822.0,68817.0,0.014539]
[1771047587421,0.001,68821.0,68817.0,0.014539]
[1771047587921,0.014538,68822.0,68817.0,0.014539]
[1771047588114,0.015538,68822.0,68817.0,0.014539]
[1771047588421,0.015538,68822.0,68816.0,0.014539]
[1771047588422,0.014538,68821.0,68816.0,0.014539]
[1771047588725,0.014538,68821.0,68817.0,0.014539]
[1771047589020,0.015538,68821.0,68816.0,0.014539]
[1771047589222,0.014538,68820.0,68815.0,0.029099]
[1771047591123,0.029076,68820.0,68815.0,0.01456]
[1771047591324,0.014539,68819.0,68815.0,0.01456]
[1771047592231,0.014538,68820.0,68815.0,0.029099]
[1771047592730,0.014538,68820.0,68816.0,0.014539]
[1771047593626,0.015538,68820.0,68816.0,0.014539]
[1771047594933,0.015538,68820.0,68815.0,0.029099]
[1771047595141,0.015538,68820.0,68815.0,0.01456]
[1771047595635,0.015538,68820.0,68815.0,0.029099]
[1771047595836,0.001,68820.0,68816.0,0.014539]
[1771047596033,0.001,68820.0,68815.0,0.029099]
[1771047596231,0.030098,68820.0,68815.0,0.014539]
[1771047596535,0.030098,68820.0,68813.0,0.029099]
[1771047596936,0.01556,68820.0,68815.0,0.014539]
[1771047597237,0.01456,68820.0,68815.0,0.014539]
[1771047597830,0.01456,68824.0,68820.0,0.014538]
[1771047598023,0.029097,68824.0,68817.0,0.014539]
[1771047598232,0.029097,68824.0,68818.0,0.014538]
[1771047598636,0.014538,68823.0,68818.0,0.014538]
[1771047599330,0.029097,68824.0,68818.0,0.014538]
[1771047600435,0.01456,68823.0,68822.0,0.014538]
[1771047600736,0.159936,68830.0,68822.0,0.014538]
[1771047600933,0.014537,68827.0,68822.0,0.014538]
[1771047601328,0.01456,68826.0,68822.0,0.014538]
[1771047602135,0.014537,68825.0,68819.0,0.014538]
[1771047602336,0.014538,68822.0,68816.0,0.01456]
[1771047602631,0.014538,68822.0,68817.0,0.014539]
[1771047603237,0.014538,68822.0,68816.0,0.029099]
[1771047603438,0.014538,68821.0,68816.0,0.029099]
[1771047604240,0.01456,68824.0,68821.0,0.014538]
[1771047604439,0.01456,68825.0,68821.0,0.014538]
[1771047604640,0.014537,68826.0,68821.0,0.014538]
[1771047604943,0.014537,68828.0,68823.0,0.014538]
[1771047605132,0.029097,68827.0,68822.0,0.014538]
[1771047605331,0.029097,68827.0,68823.0,0.014537]
[1771047606136,0.029097,68827.0,68822.0,0.014538]
[1771047606341,0.043634,68827.0,68822.0,0.014538]
[1771047607533,0.014537,68826.0,68822.0,0.014538]
[1771047607732,0.014537,68826.0,68823.0,0.00196]
[1771047608644,0.014537,68824.0,68823.0,0.00196]
[1771047609437,0.014538,68822.0,68818.0,0.014538]
[1771047609639,0.014538,68821.0,68817.0,0.014539]
[1771047609831,0.014538,68822.0,68817.0,0.014539]
[1771047610748,0.001,68821.0,68817.0,0.014539]
[1771047611244,0.014538,68822.0,68817.0,0.014539]
[1771047611444,0.015538,68822.0,68817.0,0.014539]
[1771047612135,0.001,68822.0,68815.0,0.01456]
[1771047612443,0.001,68822.0,68818.0,0.014538]
[1771047612743,0.002,68821.0,68818.0,0.014538]
[1771047612941,0.029097,68824.0,68819.0,0.014538]
[1771047613139,0.029097,68824.0,68819.0,0.029076]
[1771047613340,0.014537,68826.0,68820.0,0.014538]
[1771047613646,0.014536,68829.0,68822.0,0.014538]
[1771047613942,0.1454,68830.0,68822.0,0.014538]
[1771047614141,0.014537,68827.0,68823.0,0.014538]
[1771047614338,0.01456,68826.0,68823.0,0.014538]
[1771047614545,0.014537,68828.0,68823.0,0.014538]
[1771047614740,0.014537,68827.0,68823.0,0.014538]
[1771047614932,0.014537,68828.0,68823.0,0.014538]
[1771047615135,0.1454,68830.0,68823.0,0.014538]
[1771047615334,0.004,68826.0,68823.0,0.014538]
[1771047615540,0.01456,68825.0,68823.0,0.014538]
[1771047615836,0.014537,68827.0,68823.0,0.014538]
[1771047616036,0.014536,68830.0,68822.0,0.014538]
[1771047616237,0.014537,68828.0,68820.0,0.014538]
[1771047616436,0.01456,68827.0,68820.0,0.014538]
[1771047617035,0.002,68826.0,68822.0,0.014538]
[1771047617341,0.029097,68827.0,68823.0,0.014537]
[1771047617742,0.031097,68827.0,68823.0,0.014537]
[1771047618246,0.01656,68827.0,68823.0,0.014537]
[1771047618542,0.014534,68838.0,68821.0,0.07613799]
[1771047618745,0.074495,68837.0,68830.0,0.014536]
[1771047619041,0.029095,68836.0,68831.0,0.014536]
[1771047619238,0.089029,68840.0,68832.0,0.014536]
[1771047619438,0.014535,68837.0,68832.0,0.014536]
[1771047619647,0.014534,68839.0,68832.0,0.014536]
[1771047619842,0.014535,68837.0,68832.0,0.014536]
[1771047620348,0.01456,68838.0,68833.0,0.014535]
[1771047620545,0.014534,68838.0,68833.0,0.014535]
[1771047620848,0.00087966,68838.0,68834.0,0.014535]
[1771047621045,0.01541366,68838.0,68833.0,0.014535]
[1771047621837,0.014534,68838.0,68834.0,0.014535]
[1771047622039,0.014533,68843.0,68836.0,0.014535]
[1771047622237,0.0743673,68846.0,68834.0,0.01456]
[1771047622540,0.029069,68838.0,68834.0,0.01456]
[1771047622748,0.014535,68837.0,68834.0,0.01456]
[1771047623252,0.014534,68838.0,68834.0,0.01456]
[1771047623647,0.014534,68838.0,68834.0,0.01556]
[1771047623948,0.029069,68838.0,68834.0,0.01556]
[1771047624151,0.014534,68838.0,68834.0,0.01456]
[1771047624949,0.014534,68838.0,68834.0,0.01556]
[1771047625157,0.01456,68843.0,68839.0,0.014534]
[1771047625852,0.029093,68843.0,68838.0,0.014534]
[1771047626653,0.029093,68843.0,68839.0,0.001]
[1771047627452,0.029093,68843.0,68838.0,0.015534]
[1771047628749,0.029093,68843.0,68838.0,0.014534]
[1771047629352,0.01456,68843.0,68839.0,0.015534]
[1771047629547,0.01456,68844.0,68839.0,0.015534]
[1771047629750,0.029093,68844.0,68839.0,0.014534]
[1771047630449,0.043626,68844.0,68839.0,0.014534]
[1771047631054,0.014533,68843.0,68839.0,0.014534]
[1771047632862,0.014533,68843.0,68839.0,0.018534]
[1771047635155,0.029093,68844.0,68839.0,0.018534]
[1771047635347,0.01456,68844.0,68839.0,0.018534]
[1771047635553,0.01456,68844.0,68841.0,0.014534]
[1771047635751,0.01456,68845.0,68840.0,0.014534]
[1771047637661,0.014533,68844.0,68840.0,0.014534]
[1771047638462,0.014534,68842.0,68839.0,0.002]
[1771047638659,0.029068,68842.0,68840.0,0.004]
[1771047638860,0.014534,68841.0,68837.0,0.029094]
[1771047639255,0.014534,68841.0,68840.0,0.004]
[1771047639456,0.014534,68841.0,68837.0,0.029094]
[1771047639754,0.014534,68841.0,68840.0,0.004]
[1771047639953,0.014534,68841.0,68837.0,0.029094]
[1771047641463,0.015534,68841.0,68837.0,0.029094]
[1771047644256,0.015534,68841.0,68837.0,0.01456]
[1771047645167,0.014534,68840.0,68837.0,0.01456]
[1771047645356,0.014534,68840.0,68835.0,0.014535]
[1771047645551,0.014534,68840.0,68836.0,0.01456]
[1771047646556,0.014534,68840.0,68836.0,0.029095]
[1771047647464,0.014534,68840.0,68836.0,0.01456]
[1771047648165,0.014534,68840.0,68836.0,0.029095]
[1771047648566,0.014534,68840.0,68836.0,0.031095]
[1771047648766,0.014534,68840.0,68836.0,0.033095]
[1771047648966,0.014534,68841.0,68836.0,0.033095]
[1771047649265,0.01456,68843.0,68836.0,0.033095]
[1771047649566,0.014534,68841.0,68836.0,0.033095]
[1771047650167,0.014534,68841.0,68836.0,0.04363]
[1771047650659,0.014534,68841.0,68836.0,0.029095]
[1771047651563,0.014534,68841.0,68836.0,0.04363]
[1771047653173,0.014534,68841.0,68837.0,0.014535]
[1771047653563,0.015534,68841.0,68836.0,0.01456]
[1771047654770,0.015534,68841.0,68837.0,0.014535]
[1771047654971,0.015534,68841.0,68836.0,0.029095]
[1771047655471,0.015534,68841.0,68837.0,0.014535]
[1771047656364,0.001,68841.0,68837.0,0.014535]
[1771047656564,0.014534,68842.0,68837.0,0.014535]
[1771047656764,0.017534,68841.0,68836.0,0.029095]
[1771047656965,0.017534,68841.0,68837.0,0.014535]
[1771047657568,0.003,68841.0,68837.0,0.014535]
[1771047657873,0.014534,68842.0,68837.0,0.014535]
[1771047658174,0.017534,68842.0,68837.0,0.014535]
[1771047658574,0.017534,68842.0,68837.0,0.029069]
[1771047658773,0.017534,68842.0,68837.0,0.014534]
[1771047658974,0.003,68842.0,68839.0,0.014534]
[1771047659474,0.005,68841.0,68839.0,0.014534]
[1771047660477,0.01456,68843.0,68839.0,0.014534]
[1771047660678,0.006,68842.0,68839.0,0.014534]
[1771047661278,0.005,68841.0,68839.0,0.014534]
[1771047662780,0.005,68841.0,68838.0,0.014534]
[1771047663678,0.007,68842.0,68838.0,0.014534]
[1771047663879,0.007,68841.0,68838.0,0.014534]
[1771047664278,0.029093,68843.0,68838.0,0.014534]
[1771047664577,0.007,68841.0,68838.0,0.014534]
[1771047665680,0.029093,68843.0,68838.0,0.014534]
[1771047665872,0.036093,68843.0,68838.0,0.014534]
[1771047666073,0.036093,68843.0,68836.0,0.01456]
[1771047666274,0.029093,68843.0,68836.0,0.01456]
[1771047666575,0.007,68841.0,68838.0,0.014534]
[1771047666879,0.029093,68843.0,68838.0,0.014534]
[1771047667481,0.036093,68843.0,68838.0,0.014534]
[1771047668580,0.029093,68843.0,68838.0,0.014534]
[1771047668780,0.036093,68843.0,68838.0,0.014534]
[1771047669781,0.029093,68843.0,68838.0,0.014534]
[1771047669982,0.035093,68843.0,68838.0,0.014534]
[1771047670681,0.035093,68843.0,68839.0,0.014534]
[1771047671082,0.035093,68843.0,68837.0,0.014535]
[1771047671883,0.029093,68843.0,68837.0,0.014535]
[1771047672082,0.035093,68843.0,68837.0,0.014535]
[1771047672684,0.035093,68843.0,68838.0,0.014534]
[1771047674989,0.029093,68843.0,68838.0,0.014534]
[1771047675181,0.035093,68843.0,68838.0,0.014534]
[1771047676286,0.035093,68843.0,68837.0,0.014535]
[1771047677387,0.035093,68843.0,68839.0,0.014534]
[1771047677989,0.029093,68843.0,68839.0,0.014534]
[1771047678186,0.035093,68843.0,68839.0,0.014534]
[1771047678588,0.029093,68843.0,68839.0,0.014534]
[1771047678789,0.036093,68843.0,68839.0,0.014534]
[1771047679292,0.029093,68843.0,68839.0,0.014534]
[1771047679989,0.035093,68843.0,68839.0,0.014534]
[1771047680986,0.029093,68843.0,68839.0,0.014534]
[1771047681490,0.01456,68843.0,68840.0,0.014534]
[1771047681990,0.01556,68843.0,68840.0,0.014534]
[1771047682491,0.01656,68843.0,68840.0,0.014534]
[1771047683392,0.01656,68843.0,68837.0,0.014535]
[1771047683393,0.01656,68843.0,68838.0,0.014534]
[1771047683593,0.01656,68843.0,68840.0,0.014534]
[1771047683794,0.01456,68843.0,68840.0,0.014534]
[1771047684394,0.01556,68843.0,68840.0,0.014534]
[1771047684996,0.01456,68843.0,68840.0,0.014534]
[1771047686296,0.01456,68843.0,68838.0,0.014534]
[1771047686498,0.01456,68843.0,68836.0,0.029095]
[1771047687399,0.01456,68843.0,68839.0,0.014534]
[1771047687696,0.01456,68843.0,68836.0,0.029095]
[1771047688699,0.01456,68843.0,68839.0,0.014534]
[1771047690898,0.014533,68847.0,68841.0,0.014534]
[1771047691196,0.029066,68847.0,68842.0,0.014533]
[1771047691595,0.014533,68846.0,68842.0,0.014533]
[1771047693796,0.015533,68846.0,68842.0,0.014533]
[1771047694100,0.014533,68845.0,68841.0,0.014534]
[1771047694694,0.015533,68846.0,68841.0,0.014534]
[1771047694893,0.016533,68846.0,68841.0,0.014534]
[1771047695595,0.014533,68845.0,68841.0,0.014534]
[1771047695900,0.015533,68845.0,68841.0,0.014534]
[1771047698803,0.001,68845.0,68841.0,0.029068]
[1771047699100,0.001,68845.0,68841.0,0.014534]
[1771047699296,0.001,68845.0,68842.0,0.014533]
[1771047700208,0.014533,68846.0,68842.0,0.014533]
[1771047700504,0.014533,68845.0,68841.0,0.014534]
[1771047701202,0.014533,68845.0,68839.0,0.014534]
[1771047701404,0.014533,68845.0,68840.0,0.014534]
[1771047702396,0.014533,68845.0,68841.0,0.014534]
[1771047703603,0.014533,68844.0,68840.0,0.014534]
[1771047704000,0.014534,68840.0,68836.0,0.014535]
[1771047704207,0.014534,68841.0,68835.0,0.01456]
[1771047704409,0.014534,68841.0,68835.0,0.029095]
[1771047704602,0.014534,68839.0,68835.0,0.029095]
[1771047705501,0.014534,68839.0,68835.0,0.01456]
[1771047706302,0.014534,68839.0,68836.0,0.001]
[1771047706507,0.014534,68839.0,68835.0,0.01456]
[1771047707109,0.014534,68839.0,68834.0,0.029095]
[1771047707305,0.014534,68839.0,68833.0,0.159895]
[1771047707609,0.014534,68839.0,68834.0,0.029095]
[1771047708011,0.015534,68839.0,68834.0,0.029095]
[1771047708211,0.016534,68839.0,68834.0,0.029095]
[1771047709010,0.015534,68839.0,68834.0,0.029095]
[1771047710818,0.015534,68839.0,68834.0,0.01456]
[1771047711720,0.015534,68839.0,68834.0,0.029095]
[1771047714319,0.015534,68839.0,68835.0,0.014535]
[1771047715121,0.001,68839.0,68835.0,0.014535]
[1771047715726,0.014534,68840.0,68835.0,0.014535]
[1771047717329,0.002,68839.0,68835.0,0.014535]
[1771047720133,0.014534,68840.0,68835.0,0.014535]
[1771047720630,0.016534,68840.0,68835.0,0.014535]
[1771047721228,0.002,68840.0,68839.0,0.014534]
[1771047721428,0.014532,68852.0,68843.0,0.014533]
[1771047721429,0.014532,68850.0,68843.0,0.014533]
[1771047721628,0.01456,68847.0,68842.0,0.014533]
[1771047721931,0.029093,68847.0,68842.0,0.014533]
[1771047722234,0.014532,68851.0,68842.0,0.014533]
[1771047722423,0.01456,68850.0,68842.0,0.014533]
[1771047722726,0.014533,68847.0,68842.0,0.014533]
[1771047722931,0.028333,68847.0,68842.0,0.029066]
[1771047723326,0.028333,68847.0,68843.0,0.014533]
[1771047724132,0.029333,68847.0,68843.0,0.014533]
[1771047727334,0.043866,68847.0,68842.0,0.014533]
[1771047728235,0.014533,68846.0,68842.0,0.014533]
[1771047729336,0.028333,68847.0,68842.0,0.014533]
[1771047730536,0.028333,68847.0,68843.0,0.014533]
[1771047731232,0.01456,68848.0,68847.0,0.014532]
[1771047731435,0.01456,68849.0,68846.0,0.014532]
[1771047731739,0.029064,68852.0,68847.0,0.014532]
[1771047732237,0.01456,68851.0,68847.0,0.014532]
[1771047732434,0.01456,68850.0,68847.0,0.014532]
[1771047733939,0.01456,68851.0,68848.0,0.014532]
[1771047734335,0.029092,68851.0,68847.0,0.014532]
[1771047734635,0.014531,68855.0,68847.0,0.014532]
[1771047734841,0.014531,68852.0,68847.0,0.014532]
[1771047735041,0.029092,68851.0,68846.0,0.014533]
[1771047735340,0.014531,68852.0,68846.0,0.05693395]
[1771047735536,0.029063,68852.0,68847.0,0.014532]
[1771047736335,0.01456,68853.0,68846.0,0.05693395]
[1771047736536,0.014532,68852.0,68847.0,0.014532]
[1771047736742,0.018532,68852.0,68847.0,0.014532]
[1771047736943,0.018532,68852.0,68847.0,0.029064]
[1771047737235,0.005,68852.0,68849.0,0.014532]
[1771047737439,0.005,68852.0,68848.0,0.014532]
[1771047737641,0.014532,68851.0,68846.0,0.014533]
[1771047738844,0.01456,68855.0,68851.0,0.014531]
[1771047739040,0.001,68852.0,68849.0,0.014532]
[1771047739744,0.014531,68853.0,68848.0,0.01456]
[1771047739944,0.014531,68852.0,68848.0,0.029092]
[1771047740245,0.014531,68852.0,68848.0,0.01456]
[1771047740646,0.029063,68852.0,68848.0,0.01456]
[1771047740947,0.014531,68852.0,68848.0,0.01456]
[1771047741150,0.029063,68852.0,68848.0,0.01456]
[1771047741534,0.014531,68852.0,68848.0,0.029092]
[1771047741844,0.014531,68853.0,68848.0,0.030092]
[1771047742346,0.014531,68853.0,68848.0,0.031092]
[1771047743446,0.014531,68853.0,68849.0,0.014532]
[1771047743840,0.014531,68855.0,68849.0,0.014532]
[1771047744244,0.014531,68854.0,68849.0,0.014532]
[1771047745346,0.001,68853.0,68849.0,0.014532]
[1771047745546,0.001,68853.0,68849.0,0.016532]
[1771047745747,0.015531,68853.0,68849.0,0.016532]
[1771047745947,0.014531,68855.0,68849.0,0.016532]
[1771047746537,0.014532,68851.0,68850.0,0.01456]
[1771047746736,0.014532,68851.0,68845.0,0.072546]
[1771047746737,0.029064,68851.0,68849.0,0.01456]